lending/lending_fUSD_20250913
["ID","MTS","AMOUNT","RATE_DAILY","PERIOD"]
[385363889,1757790848217,-7356.28626155,0.0003288,30]
[385363890,1757790848226,-7356.28626155,0.0003288,30]
[385363891,1757790848235,-7356.28626155,0.0003288,30]
[385363892,1757790848244,-7356.28626155,0.0003288,30]
[385363893,1757790848254,-7356.28,0.0003288,30]
[385363894,1757790848264,-4742.40487053,0.0003288,30]
[385363895,1757790848273,-4742.40487053,0.0003288,30]
[385363896,1757790848282,-4742.40487053,0.0003288,30]
[385363897,1757790848292,-4742.40487053,0.0003288,30]
[385363898,1757790848301,-4742.40487053,0.0003288,30]
[385363899,1757790848472,-4742.40487053,0.0003288,30]
[385363900,1757790848488,-4742.40487053,0.0003288,30]
[385363901,1757790848498,-4742.40487053,0.0003288,30]
[385363902,1757790848510,-4742.40487053,0.0003288,30]
[385363903,1757790848520,-4742.40487053,0.0003288,30]
[385363904,1757790848530,-4742.40487053,0.0003288,30]
[385363905,1757790848539,-4742.40487053,0.0003288,30]
[385363906,1757790848549,-4742.40487053,0.0003288,30]
[385363907,1757790848558,-4742.40487053,0.0003288,30]
[385363908,1757790848568,-4742.40487053,0.0003288,30]
[385363909,1757790848578,-4742.40487053,0.0003288,30]
[385363910,1757790848587,-4742.40487053,0.0003288,30]
[385363911,1757790848597,-4742.40487053,0.0003288,30]
[385363912,1757790848607,-4742.40487053,0.0003288,30]
[385363913,1757790848617,-4742.4,0.0003288,30]
[385363914,1757790848626,-726.0,0.00032915,2]
[385363915,1757790848635,-18853.0,0.00032915,2]
[385363916,1757790848645,-4168.0,0.00032915,2]
[385363917,1757790848655,-6173.0,0.00032915,2]
[385363918,1757790848664,-1177.0,0.00032915,2]
[385363919,1757790848674,-500.0,0.0003293,120]
[385363920,1757790848684,-344.91441206,0.00032947,2]
[385363921,1757790848694,-700.0,0.0003297,2]
[385363922,1757790848703,-400.0,0.0003297,2]
[385363923,1757790848712,-700.0,0.0003297,2]
[385363924,1757790848722,-400.0,0.0003297,2]
[385363925,1757790848732,-20000.0,0.00033,14]
[385363926,1757790848742,-50925.12,0.00033,14]
[385363927,1757790848752,-540.212169,0.00033,14]
[385363928,1757790848762,-160.0,0.00033,30]
[385363929,1757790848771,-212.99211257,0.00033,30]
[385363930,1757790848781,-515.60081738,0.00033,30]
[385363931,1757790848790,-232.41,0.00033013,120]
[385363932,1757790848800,-2000.0,0.00033123,120]
[385363933,1757790848809,-193.7102445,0.0003313,2]
[385363934,1757790848819,-403.48,0.0003315,2]
[385363935,1757790848828,-699.06,0.0003315,2]
[385363936,1757790848837,-888.74,0.0003315,2]
[385363937,1757790848847,-1067.33,0.0003315,2]
[385363938,1757790848856,-494.9,0.0003315,2]
[385363939,1757790848866,-400.0,0.0003315,2]
[385363940,1757790848875,-1011.1,0.0003315,2]
[385363941,1757790848884,-411.04,0.0003315,2]
[385363942,1757790848894,-544.58481245,0.0003315,2]
[385363943,1757790848903,-436.55,0.0003315,2]
[385363944,1757790848912,-415.46,0.0003315,2]
[385363945,1757790848922,-1222.47,0.0003315,2]
[385363946,1757790848931,-751.49,0.0003315,2]
[385363947,1757790848940,-622.37,0.0003315,2]
[385363948,1757790848950,-512.06,0.0003315,2]
[385363949,1757790848959,-516.89,0.0003315,2]
[385363950,1757790848969,-572.28,0.0003315,2]
[385363951,1757790848978,-405.34,0.0003315,2]
[385363952,1757790848988,-892.3,0.0003315,2]
[385363953,1757790848998,-2090.35,0.0003315,2]
[385363954,1757790849007,-445.77,0.0003315,2]
[385363955,1757790849017,-849.51,0.0003315,2]
[385363956,1757790849027,-764.33,0.0003315,2]
[385363957,1757790849036,-812.38,0.0003315,2]
[385363958,1757790849046,-579.38,0.0003315,2]
[385363959,1757790849055,-1141.14,0.0003315,2]
[385363960,1757790849064,-650.0,0.0003315,120]
[385363961,1757790849074,-593.32,0.0003315,2]
[385363962,1757790849083,-410.98510249,0.0003315,2]
[385363963,1757790849093,-762.02,0.0003315,2]
[385363964,1757790849102,-240.24834884,0.0003315,2]
[385363965,1757790849111,-633.2,0.0003315,2]
[385363966,1757790849120,-548.72,0.0003315,2]
[385363967,1757790849130,-400.0,0.0003315,2]
[385363968,1757790849139,-411.96,0.0003315,2]
[385363969,1757790849149,-653.34,0.0003315,2]
[385363970,1757790849158,-891.73,0.0003315,2]
[385363971,1757790849167,-598.23,0.0003315,2]
[385363972,1757790849176,-1354.32,0.0003315,2]
[385363973,1757790849185,-518.98,0.0003315,2]
[385363974,1757790849195,-925.24,0.0003315,2]
[385363975,1757790849204,-722.44,0.0003315,2]
[385363976,1757790849213,-506.66,0.0003315,2]
[385363977,1757790849222,-1909.11,0.0003315,2]
[385363978,1757790849231,-886.75,0.0003315,2]
[385363979,1757790849241,-1138.1,0.0003315,2]
[385363980,1757790849250,-297.1502155,0.0003315,2]
[385363981,1757790849259,-576.48,0.0003315,2]
[385363982,1757790849269,-400.0,0.0003315,2]
[385363983,1757790849279,-336.3271971,0.0003315,2]
[385363984,1757790849288,-712.7,0.0003315,2]
[385363985,1757790849297,-400.0,0.0003315,2]
[385363986,1757790849306,-2782.51,0.0003315,2]
[385363987,1757790849315,-400.0,0.0003315,2]
[385363988,1757790849325,-400.0,0.0003315,2]
[385363989,1757790849334,-749.03,0.0003315,2]
[385363990,1757790849343,-476.93,0.0003315,2]
[385363991,1757790849352,-652.17,0.0003315,2]
[385363992,1757790849362,-1095.32,0.0003315,2]
[385363993,1757790849371,-778.01,0.0003315,2]
[385363994,1757790849380,-450.34,0.0003315,2]
[385363995,1757790849390,-623.72,0.0003315,2]
[385363996,1757790849399,-232.41,0.0003315,120]
[385363997,1757790849408,-522.52,0.0003315,2]
[385363998,1757790849417,-1025.68,0.0003315,2]
[385363999,1757790849427,-1547.47,0.0003315,2]
[385364000,1757790849436,-452.08,0.0003315,2]
[385364001,1757790849445,-954.04,0.0003315,2]
[385364002,1757790849455,-972.47,0.0003315,2]
[385364003,1757790849464,-440.6,0.0003315,2]
[385364004,1757790849473,-1107.3,0.0003315,2]
[385364005,1757790849483,-1360.89,0.0003315,2]
[385364006,1757790849494,-438.49,0.0003315,2]
[385364007,1757790849504,-511.89,0.0003315,2]
[385364008,1757790849519,-875.02,0.0003315,2]
[385364009,1757790849528,-441.06,0.0003315,2]
[385364010,1757790849537,-540.34,0.0003315,2]
[385364011,1757790849547,-432.57,0.0003315,2]
[385364012,1757790849558,-605.1,0.0003315,2]
[385364013,1757790849568,-979.03,0.0003315,2]
[385364014,1757790849577,-639.66,0.0003315,2]
[385364015,1757790849586,-743.92,0.0003315,2]
[385364016,1757790849597,-549.77,0.0003315,2]
[385364017,1757790849608,-757.51,0.0003315,2]
[385364018,1757790849618,-1369.33,0.0003315,2]
[385364019,1757790849629,-976.5,0.0003315,2]
[385364020,1757790849640,-714.21,0.0003315,2]
[385364021,1757790849650,-429.54,0.0003315,2]
[385364022,1757790849659,-1200.51,0.0003315,2]
[385364023,1757790849669,-931.9,0.0003315,2]
[385364024,1757790849679,-867.52,0.0003315,2]
[385364025,1757790849689,-767.06,0.0003315,2]
[385364026,1757790849699,-522.36,0.0003315,2]
[385364027,1757790849709,-464.29,0.0003315,2]
[385364028,1757790849720,-1050.24,0.0003315,2]
[385364029,1757790849729,-712.0,0.0003315,2]
[385364030,1757790849739,-770.1,0.0003315,2]
[385364031,1757790849748,-1340.61,0.0003315,2]
[385364032,1757790849757,-744.56,0.0003315,2]
[385364033,1757790849767,-503.78,0.0003315,2]
[385364034,1757790849776,-933.78,0.0003315,2]
[385364035,1757790849786,-917.05,0.0003315,2]
[385364036,1757790849796,-601.03,0.0003315,2]
[385364037,1757790849805,-408.67,0.0003315,2]
[385364038,1757790849814,-1166.06,0.0003315,2]
[385364039,1757790849823,-744.95,0.0003315,2]
[385364040,1757790849834,-962.63,0.0003315,2]
[385364041,1757790849843,-944.97,0.0003315,2]
[385364042,1757790849853,-697.23,0.0003315,2]
[385364043,1757790849862,-1128.5,0.0003315,2]
[385364044,1757790849872,-1287.15,0.0003315,2]
[385364045,1757790849882,-1140.31,0.0003315,2]
[385364046,1757790849891,-883.84,0.0003315,2]
[385364047,1757790849900,-1121.16,0.0003315,2]
[385364048,1757790849910,-550.0,0.0003315,120]
[385364049,1757790849919,-400.0,0.0003315,2]
[385364050,1757790849927,-513.88,0.0003315,2]
[385364051,1757790849937,-766.79,0.0003315,2]
[385364052,1757790849946,-836.28,0.0003315,2]
[385364053,1757790849955,-430.86405518,0.0003315,2]
[385364054,1757790849965,-1062.97,0.0003315,2]
[385364055,1757790849974,-701.46,0.0003315,2]
[385364056,1757790849983,-1010.43,0.0003315,2]
[385364057,1757790849992,-618.9,0.0003315,2]
[385364058,1757790850001,-740.73,0.0003315,2]
[385364059,1757790850010,-617.0,0.0003315,2]
[385364060,1757790850019,-955.87,0.0003315,2]
[385364061,1757790850029,-249.71706557,0.0003315,2]
[385364062,1757790850038,-1394.15,0.0003315,2]
[385364063,1757790850047,-645.46,0.0003315,2]
[385364064,1757790850056,-475.16,0.0003315,2]
[385364065,1757790850065,-1201.25,0.0003315,2]
[385364066,1757790850074,-1420.48,0.0003315,2]
[385364067,1757790850084,-436.7,0.0003315,2]
[385364068,1757790850093,-886.97,0.0003315,2]
[385364069,1757790850103,-695.44,0.0003315,2]
[385364070,1757790850114,-1459.76,0.0003315,2]
[385364071,1757790850125,-869.21,0.0003315,2]
[385364072,1757790850135,-563.58,0.0003315,2]
[385364073,1757790850144,-565.26,0.0003315,2]
[385364074,1757790850153,-1134.89,0.0003315,2]
[385364075,1757790850162,-404.56,0.0003315,2]
[385364076,1757790850171,-734.93,0.0003315,2]
[385364077,1757790850180,-1149.23,0.0003315,2]
[385364078,1757790850189,-1190.66,0.0003315,2]
[385364079,1757790850198,-656.39,0.0003315,2]
[385364080,1757790850207,-1130.2,0.0003315,2]
[385364081,1757790850216,-914.37,0.0003315,2]
[385364082,1757790850225,-869.45,0.0003315,2]
[385364083,1757790850235,-459.11,0.0003315,2]
[385364084,1757790850243,-1022.06,0.0003315,2]
[385364085,1757790850253,-516.71,0.0003315,2]
[385364086,1757790850262,-277.00206321,0.0003315,2]
[385364087,1757790850271,-1379.73,0.0003315,2]
[385364088,1757790850281,-899.94,0.0003315,2]
[385364089,1757790850290,-866.46,0.0003315,2]
[385364090,1757790850299,-556.4,0.0003315,2]
[385364091,1757790850308,-1195.99,0.0003315,2]
[385364092,1757790850318,-518.54,0.0003315,2]
[385364093,1757790850327,-1740.08,0.0003315,2]
[385364094,1757790850336,-1006.76,0.0003315,2]
[385364095,1757790850345,-668.89,0.0003315,2]
[385364096,1757790850355,-529.54,0.0003315,2]
[385364097,1757790850365,-927.44,0.0003315,2]
[385364098,1757790850374,-662.77,0.0003315,2]
[385364099,1757790850383,-586.65,0.0003315,2]
[385364100,1757790850392,-744.19,0.0003315,2]
[385364101,1757790850401,-899.11,0.0003315,2]
[385364102,1757790850410,-770.78,0.0003315,2]
[385364103,1757790850419,-714.15,0.0003315,2]
[385364104,1757790850429,-644.35,0.0003315,2]
[385364105,1757790850438,-453.23,0.0003315,2]
[385364106,1757790850447,-1002.56,0.0003315,2]
[385364107,1757790850456,-809.12,0.0003315,2]
[385364108,1757790850465,-864.64,0.0003315,2]
[385364109,1757790850475,-836.53,0.0003315,2]
[385364110,1757790850484,-495.68305108,0.0003315,2]
[385364111,1757790850493,-800.39,0.0003315,2]
[385364112,1757790850502,-759.84,0.0003315,2]
[385364113,1757790850515,-438.06,0.0003315,2]
[385364114,1757790850524,-1067.29,0.0003315,2]
[385364115,1757790850533,-483.11,0.0003315,2]
[385364116,1757790850542,-890.46,0.0003315,2]
[385364117,1757790850553,-621.88,0.0003315,2]
[385364118,1757790850562,-1123.98,0.0003315,2]
[385364119,1757790850571,-440.32,0.0003315,2]
[385364120,1757790850580,-2863.78,0.0003315,2]
[385364121,1757790850589,-757.94,0.0003315,2]
[385364122,1757790850599,-557.63,0.0003315,2]
[385364123,1757790850608,-861.65,0.0003315,2]
[385364124,1757790850959,-803.76,0.0003315,2]
[385364125,1757790850971,-835.94,0.0003315,2]
[385364126,1757790850981,-434.25,0.0003315,2]
[385364127,1757790850990,-578.44,0.0003315,2]
[385364128,1757790850999,-550.07,0.0003315,2]
[385364129,1757790851009,-800.87,0.0003315,2]
[385364130,1757790851019,-400.0,0.0003315,2]
[385364131,1757790851028,-541.06,0.0003315,2]
[385364132,1757790851038,-171.81,0.0003315,2]
[385364133,1757790851047,-652.82,0.0003315,2]
[385364134,1757790851056,-423.72,0.0003315,2]
[385364135,1757790851066,-1300.44,0.0003315,2]
[385364136,1757790851075,-439.16,0.0003315,2]
[385364137,1757790851084,-826.3,0.0003315,2]
[385364138,1757790851093,-787.45,0.0003315,2]
[385364139,1757790851102,-535.57,0.0003315,2]
[385364140,1757790851112,-800.47,0.0003315,2]
[385364141,1757790851121,-1253.6,0.0003315,2]
[385364142,1757790851130,-544.69,0.0003315,2]
[385364143,1757790851140,-944.98,0.0003315,2]
[385364144,1757790851149,-556.97,0.0003315,2]
[385364145,1757790851158,-652.8,0.0003315,2]
[385364146,1757790851167,-489.49,0.0003315,2]
[385364147,1757790851177,-842.01,0.0003315,2]
[385364148,1757790851186,-1082.49,0.0003315,2]
[385364149,1757790851195,-589.14,0.0003315,2]
[385364150,1757790851205,-890.6,0.0003315,2]
[385364151,1757790851214,-583.29,0.0003315,2]
[385364152,1757790851224,-708.58,0.0003315,2]
[385364153,1757790851233,-531.52,0.0003315,2]
[385364154,1757790851243,-439.06,0.0003315,2]
[385364155,1757790851252,-1252.15,0.0003315,2]
[385364156,1757790851262,-947.61,0.0003315,2]
[385364157,1757790851272,-1050.56,0.0003315,2]
[385364158,1757790851282,-872.42,0.0003315,2]
[385364159,1757790851291,-791.71,0.0003315,2]
[385364160,1757790851302,-407.96,0.0003315,2]
[385364161,1757790851311,-224.56328412,0.0003315,2]
[385364162,1757790851320,-983.81,0.0003315,2]
[385364163,1757790851329,-868.8,0.0003315,2]
[385364164,1757790851339,-846.53,0.0003315,2]
[385364165,1757790851349,-2593.64,0.0003315,2]
[385364166,1757790851360,-730.89,0.0003315,2]
[385364167,1757790851369,-785.21,0.0003315,2]
[385364168,1757790851379,-447.29,0.0003315,2]
[385364169,1757790851389,-964.92,0.0003315,2]
[385364170,1757790851398,-428.63,0.0003315,2]
[385364171,1757790851408,-759.47,0.0003315,2]
[385364172,1757790851418,-620.45,0.0003315,2]
[385364173,1757790851427,-505.66,0.0003315,2]
[385364174,1757790851436,-862.8,0.0003315,2]
[385364175,1757790851446,-537.7,0.0003315,2]
[385364176,1757790851455,-427.09,0.0003315,2]
[385364177,1757790851465,-400.0,0.0003315,2]
[385364178,1757790851474,-330.98571528,0.0003315,2]
[385364179,1757790851484,-1263.32,0.0003315,2]
[385364180,1757790851493,-537.96783432,0.0003315,2]
[385364181,1757790851503,-786.15,0.0003315,2]
[385364182,1757790851519,-769.42,0.0003315,2]
[385364183,1757790851529,-4665.54,0.0003315,2]
[385364184,1757790851538,-958.92,0.0003315,2]
[385364185,1757790851548,-1162.64,0.0003315,2]
[385364186,1757790851558,-843.12,0.0003315,2]
[385364187,1757790851568,-830.89,0.0003315,2]
[385364188,1757790851578,-871.15,0.0003315,2]
[385364189,1757790851588,-484.74,0.0003315,2]
[385364190,1757790851597,-582.6,0.0003315,2]
[385364191,1757790851607,-1106.22,0.0003315,2]
[385364192,1757790851616,-1197.3,0.0003315,2]
[385364193,1757790851626,-3316.79,0.0003315,2]
[385364194,1757790851636,-898.38,0.0003315,2]
[385364195,1757790851646,-744.46,0.0003315,2]
[385364196,1757790851655,-1081.81,0.0003315,2]
[385364197,1757790851665,-1406.57,0.0003315,2]
[385364198,1757790851675,-2017.53,0.0003315,2]
[385364199,1757790851685,-420.47,0.0003315,2]
[385364200,1757790851695,-752.16,0.0003315,2]
[385364201,1757790851705,-843.08,0.0003315,2]
[385364202,1757790851714,-729.82,0.0003315,2]
[385364203,1757790851724,-924.42,0.0003315,2]
[385364204,1757790851734,-715.39,0.0003315,2]
[385364205,1757790851744,-1791.52,0.0003315,2]
[385364206,1757790851753,-905.52,0.0003315,2]
[385364207,1757790851763,-1035.92,0.0003315,2]
[385364208,1757790851773,-405.71,0.0003315,2]
[385364209,1757790851783,-543.24,0.0003315,2]
[385364210,1757790851792,-1125.91,0.0003315,2]
[385364211,1757790851802,-897.14,0.0003315,2]
[385364212,1757790851812,-405.06,0.0003315,2]
[385364213,1757790851821,-838.71,0.0003315,2]
[385364214,1757790851831,-778.35,0.0003315,2]
[385364215,1757790851841,-519.54,0.0003315,2]
[385364216,1757790851850,-1097.98,0.0003315,2]
[385364217,1757790851860,-812.08,0.0003315,2]
[385364218,1757790851870,-746.12,0.0003315,2]
[385364219,1757790851880,-1172.1,0.0003315,2]
[385364220,1757790851890,-216.64896756,0.0003315,2]
[385364221,1757790851899,-1004.56,0.0003315,2]
[385364222,1757790851908,-1550.32,0.0003315,2]
[385364223,1757790851917,-406.12,0.0003315,2]
[385364224,1757790851926,-738.83,0.0003315,2]
[385364225,1757790851935,-1445.07,0.0003315,2]
[385364226,1757790851945,-681.1,0.0003315,2]
[385364227,1757790851954,-1822.15,0.0003315,2]
[385364228,1757790851963,-417.32,0.0003315,2]
[385364229,1757790851973,-1015.89,0.0003315,2]
[385364230,1757790851982,-636.43,0.0003315,2]
[385364231,1757790851991,-983.53,0.0003315,2]
[385364232,1757790852001,-722.69,0.0003315,2]
[385364233,1757790852010,-670.74,0.0003315,2]
[385364234,1757790852020,-458.09,0.0003315,2]
[385364235,1757790852030,-589.72,0.0003315,2]
[385364236,1757790852039,-761.25,0.0003315,2]
[385364237,1757790852049,-411.62,0.0003315,2]
[385364238,1757790852058,-422.08,0.0003315,2]
[385364239,1757790852067,-1393.14,0.0003315,2]
[385364240,1757790852077,-1836.39,0.0003315,2]
[385364241,1757790852086,-1118.88,0.0003315,2]
[385364242,1757790852095,-806.89,0.0003315,2]
[385364243,1757790852104,-862.09,0.0003315,2]
[385364244,1757790852114,-3209.32,0.0003315,2]
[385364245,1757790852123,-2346.72,0.0003315,2]
[385364246,1757790852132,-1033.98,0.0003315,2]
[385364247,1757790852141,-1286.51,0.0003315,2]
[385364248,1757790852151,-182.88067204,0.0003315,2]
[385364249,1757790852160,-896.46,0.0003315,2]
[385364250,1757790852169,-524.85,0.0003315,2]
[385364251,1757790852178,-837.65,0.0003315,2]
[385364252,1757790852187,-941.17,0.0003315,2]
[385364253,1757790852197,-702.99,0.0003315,2]
[385364254,1757790852206,-1450.08,0.0003315,2]
[385364255,1757790852215,-872.8,0.0003315,2]
[385364256,1757790852224,-727.17,0.0003315,2]
[385364257,1757790852233,-711.83,0.0003315,2]
[385364258,1757790852242,-765.36,0.0003315,2]
[385364259,1757790852251,-778.2,0.0003315,2]
[385364260,1757790852260,-980.63,0.0003315,2]
[385364261,1757790852269,-2033.09,0.0003315,2]
[385364262,1757790852278,-677.3,0.0003315,2]
[385364263,1757790852287,-538.72,0.0003315,2]
[385364264,1757790852297,-1183.03,0.0003315,2]
[385364265,1757790852306,-722.19,0.0003315,2]
[385364266,1757790852316,-1015.48,0.0003315,2]
[385364267,1757790852326,-965.24,0.0003315,2]
[385364268,1757790852336,-599.03,0.0003315,2]
[385364269,1757790852346,-653.28,0.0003315,2]
[385364270,1757790852355,-974.74,0.0003315,2]
[385364271,1757790852365,-532.11,0.0003315,2]
[385364272,1757790852373,-775.6,0.0003315,2]
[385364273,1757790852383,-1047.99,0.0003315,2]
[385364274,1757790852392,-867.54,0.0003315,2]
[385364275,1757790852401,-741.23,0.0003315,2]
[385364276,1757790852411,-603.59,0.0003315,2]
[385364277,1757790852420,-1243.58,0.0003315,2]
[385364278,1757790852429,-2266.8,0.0003315,2]
[385364279,1757790852438,-835.84,0.0003315,2]
[385364280,1757790852447,-605.54,0.0003315,2]
[385364281,1757790852458,-526.24,0.0003315,2]
[385364282,1757790852468,-502.15,0.0003315,2]
[385364283,1757790852477,-462.88,0.0003315,2]
[385364284,1757790852487,-495.47,0.0003315,2]
[385364285,1757790852497,-2089.21,0.0003315,2]
[385364286,1757790852507,-1484.39,0.0003315,2]
[385364287,1757790852519,-858.84,0.0003315,2]
[385364288,1757790852528,-708.83,0.0003315,2]
[385364289,1757790852539,-1139.82,0.0003315,2]
[385364290,1757790852547,-676.37,0.0003315,2]
[385364291,1757790852556,-920.38,0.0003315,2]
[385364292,1757790852566,-785.36,0.0003315,2]
[385364293,1757790852575,-421.20353112,0.0003315,2]
[385364294,1757790852584,-1042.18,0.0003315,2]
[385364295,1757790852594,-714.23,0.0003315,2]
[385364296,1757790852603,-894.39,0.0003315,2]
[385364297,1757790852612,-647.42,0.0003315,2]
[385364298,1757790852621,-513.3,0.0003315,2]
[385364299,1757790852630,-924.41,0.0003315,2]
[385364300,1757790852639,-857.85,0.0003315,2]
[385364301,1757790852649,-2338.03,0.0003315,2]
[385364302,1757790852659,-722.3,0.0003315,2]
[385364303,1757790852668,-841.74,0.0003315,2]
[385364304,1757790852677,-814.0,0.0003315,2]
[385364305,1757790852687,-767.19,0.0003315,2]
[385364306,1757790852696,-415.27,0.0003315,2]
[385364307,1757790852705,-1469.88,0.0003315,2]
[385364308,1757790852714,-1229.51,0.0003315,2]
[385364309,1757790852724,-449.16,0.0003315,2]
[385364310,1757790852734,-1485.88,0.0003315,2]
[385364311,1757790852743,-844.21,0.0003315,2]
[385364312,1757790852752,-2265.68,0.0003315,2]
[385364313,1757790852762,-865.66,0.0003315,2]
[385364314,1757790852773,-863.57,0.0003315,2]
[385364315,1757790852782,-572.0,0.0003315,2]
[385364316,1757790852792,-2112.49,0.0003315,2]
[385364317,1757790852801,-510.21,0.0003315,2]
[385364318,1757790852810,-1107.28,0.0003315,2]
[385364319,1757790852820,-1170.47,0.0003315,2]
[385364320,1757790852829,-841.3,0.0003315,2]
[385364321,1757790852838,-856.96,0.0003315,2]
[385364322,1757790852848,-1028.51,0.0003315,2]
[385364323,1757790852857,-906.61,0.0003315,2]
[385364324,1757790852866,-1458.58,0.0003315,2]
[385364325,1757790852875,-1006.96,0.0003315,2]
[385364326,1757790852885,-701.85,0.0003315,2]
[385364327,1757790852894,-4256.1,0.0003315,2]
[385364328,1757790852904,-728.15,0.0003315,2]
[385364329,1757790852913,-925.96,0.0003315,2]
[385364330,1757790852923,-353.12473821,0.0003315,2]
[385364331,1757790852931,-445.69,0.0003315,2]
[385364332,1757790852941,-1198.57,0.0003315,2]
[385364333,1757790852950,-1974.67,0.0003315,2]
[385364334,1757790852959,-2857.69,0.0003315,2]
[385364335,1757790852968,-847.13,0.0003315,2]
[385364336,1757790852977,-2990.98,0.0003315,2]
[385364337,1757790852986,-834.58,0.0003315,2]
[385364338,1757790852995,-199.20670222,0.0003315,2]
[385364339,1757790853005,-2302.98,0.0003315,2]
[385364340,1757790853015,-1747.56,0.0003315,2]
[385364341,1757790853024,-2111.33,0.0003315,2]
[385364342,1757790853033,-466.82,0.0003315,2]
[385364343,1757790853042,-546.1809198,0.0003315,2]
[385364344,1757790853051,-2233.25,0.0003315,2]
[385364345,1757790853060,-1255.2,0.0003315,2]
[385364346,1757790853069,-1963.87,0.0003315,2]
[385364347,1757790853079,-694.91,0.0003315,2]
[385364348,1757790853088,-807.66,0.0003315,2]
[385364349,1757790853098,-927.88,0.0003315,2]
[385364350,1757790853106,-952.59,0.0003315,2]
[385364351,1757790853115,-1143.85,0.0003315,2]
[385364352,1757790853124,-2263.39,0.0003315,2]
[385364353,1757790853134,-931.48,0.0003315,2]
[385364354,1757790853143,-669.04,0.0003315,2]
[385364355,1757790853152,-1333.33,0.0003315,2]
[385364356,1757790853162,-944.31,0.0003315,2]
[385364357,1757790853170,-711.99,0.0003315,2]
[385364358,1757790853179,-1030.24,0.0003315,2]
[385364359,1757790853189,-1798.63,0.0003315,2]
[385364360,1757790853198,-977.53,0.0003315,2]
[385364361,1757790853207,-1079.08,0.0003315,2]
[385364362,1757790853217,-568.52,0.0003315,2]
[385364363,1757790853226,-923.82,0.0003315,2]
[385364364,1757790853235,-1374.51,0.0003315,2]
[385364365,1757790853244,-539.76,0.0003315,2]
[385364366,1757790853253,-532.15,0.0003315,2]
[385364367,1757790853384,-1021.66,0.0003315,2]
[385364368,1757790853395,-796.82,0.0003315,2]
[385364369,1757790853404,-480.76116131,0.0003315,2]
[385364370,1757790853414,-707.41,0.0003315,2]
[385364371,1757790853423,-923.85,0.0003315,2]
[385364372,1757790853432,-585.84,0.0003315,2]
[385364373,1757790853441,-1683.27,0.0003315,2]
[385364374,1757790853450,-1254.84,0.0003315,2]
[385364375,1757790853459,-1026.54,0.0003315,2]
[385364376,1757790853468,-786.29,0.0003315,2]
[385364377,1757790853478,-492.79,0.0003315,2]
[385364378,1757790853486,-2328.06,0.0003315,2]
[385364379,1757790853496,-1854.12,0.0003315,2]
[385364380,1757790853505,-1159.49,0.0003315,2]
[385364381,1757790853518,-984.06495215,0.0003315,2]
[385364382,1757790853527,-1262.94,0.0003315,2]
[385364383,1757790853537,-3059.22,0.0003315,2]
[385364384,1757790853547,-618.58,0.0003315,2]
[385364385,1757790853557,-400.0,0.0003315,2]
[385364386,1757790853567,-666.27,0.0003315,2]
[385364387,1757790853576,-2778.98,0.0003315,2]
[385364388,1757790853587,-438.09,0.0003315,2]